Cogmind - Beta 10.2 @@@ ROGUE MODE // 2020.12.06 @ 20:28:23 Player: 3.14 Result: Self-destructed Performance ------------- Evolutions (5) 2500 Regions Visited (16) 3200 Robots Destroyed (173) 865 Value Destroyed (5978) 5978 Prototype IDs (9) 180 Alien Tech Used (0) 0 Bonus (1610) 1610 TOTAL SCORE: 14333 Bonus ------- High Alert Combat Kills 216 Follower Combat Kills 2045 Network Hubs Disabled 400 Met Imprinter 300 Met R17 at Cetus 500 Friendly Fire -1851 Cogmind --------- Core Integrity 981/1000 Matter 300/300 Energy 350/350 System Corruption 8% Temperature Cool (0) Movement Treading (160) Location -5/Factory Parts ------- > --- POWER (1) -------- Quantum Reactor > --- PROPULSION (4) --- Centrium Heavy Treads Centrium Heavy Treads > --- UTILITY (8) ------ Advanced Cooling System High-capacity Storage Unit High-capacity Storage Unit Enhanced Optical Array Advanced Targeting Computer Core Analyzer Armor Integrity Analyzer Medium Reactive Plating > --- WEAPON (4) ------- Autogun Flak Gun Flak Gun KE Penetrator > --- INVENTORY (20) --- Compact Matter Pod (150) Advanced Signal Interpreter Layered Medium Armor Plating Centrium Medium Armor Plating Centrium Medium Armor Plating Centrium Medium Armor Plating Medium Reactive Plating Long-range Tractor Beam Hacking Drone Bay (1/1) Flak Gun Flak Gun Heavy Machine Gun KE Penetrator Improved KE Penetrator Improved KE Penetrator Improved KE Penetrator Heavy Missile Launcher CR-A16's Pointy Stick Peak State ------------ > --- POWER ------------ Quantum Reactor > --- PROPULSION ------- Centrium Heavy Treads Centrium Heavy Treads > --- UTILITY ---------- High-capacity Storage Unit High-capacity Storage Unit Enhanced Optical Array Advanced Targeting Computer Core Analyzer Armor Integrity Analyzer Centrium Medium Armor Plating Medium Reactive Plating > --- WEAPON ----------- Flak Gun Flak Gun Flak Gun KE Penetrator > --- INVENTORY -------- Centrium Heavy Treads Improved Cooling System Compact Matter Pod Advanced Signal Interpreter Centrium Medium Armor Plating Centrium Medium Armor Plating Medium Reactive Plating Long-range Tractor Beam Hacking Drone Bay Flak Gun Flak Gun Heavy Machine Gun Improved KE Penetrator Improved KE Penetrator Improved KE Penetrator Heavy Missile Launcher CR-A16's Pointy Stick [Rating: 101] Favorites ----------- Power Cooled Ion Engine Engine Cooled Ion Engine Power Core Light Nuclear Core Reactor Quantum Reactor Propulsion Light Treads Treads Light Treads Leg Aluminum Leg Utility High-capacity Storage Unit Device Hacking Drone Bay Storage High-capacity Storage Unit Processor Advanced Targeting Computer Protection Improved Medium Armor Plating Weapon Flak Gun Energy Gun EM Pulse Gun Ballistic Gun Flak Gun Launcher Rocket Array Slashing Weapon Chainsword Piercing Weapon CR-A16's Pointy Stick Build | -11 -10 -9 -8 -7 -7 -7 -7 -7 -7 -6 -6 -6 -6 -6 -6 -5 ------- Run | Scr Mat Mat Mat Fac Was Fac Low Low Zio Pro Fac Ext Cet Arc Hub Fac Slots Evolved 10 | . . 2 2 2 . . . . . . 2 . . . . 2 Power . | . . . . . . . . . . . . . . . . . Propulsion 2 | . . . 1 1 . . . . . . . . . . . . Utility 6 | . . 1 1 . . . . . . . 2 . . . . 2 Weapon 2 | . . 1 . 1 . . . . . . . . . . . . Parts Attached 200 | 6 18 22 13 11 9 8 5 10 7 6 20 31 11 . 8 15 Power 13 | 1 1 2 1 1 1 . . 2 . . 1 1 . . 1 1 Engine 10 | 1 1 2 1 . 1 . . 2 . . 1 1 . . . . Core 1 | . . . . 1 . . . . . . . . . . . . Reactor 2 | . . . . . . . . . . . . . . . 1 1 Propulsion 36 | 2 7 2 5 1 2 2 2 1 . 2 4 3 2 . . 1 Treads 31 | 2 2 2 5 1 2 2 2 1 . 2 4 3 2 . . 1 Leg 5 | . 5 . . . . . . . . . . . . . . . Wheel . | . . . . . . . . . . . . . . . . . Hover . | . . . . . . . . . . . . . . . . . Flight . | . . . . . . . . . . . . . . . . . Utility 75 | 1 6 7 5 4 1 2 1 2 3 1 5 19 4 . 6 8 Device 17 | . . . . . . . . . 1 . . 9 1 . 3 3 Storage 11 | 1 6 2 . . . 1 . . . . 1 . . . . . Processor 7 | . . . 2 1 . . . . . . 2 1 . . . 1 Hackware . | . . . . . . . . . . . . . . . . . Protection 40 | . . 5 3 3 1 1 1 2 2 1 2 9 3 . 3 4 Artifact . | . . . . . . . . . . . . . . . . . Weapon 76 | 2 4 11 2 5 5 4 2 5 4 3 10 8 5 . 1 5 Energy Gun 1 | 1 . . . . . . . . . . . . . . . . Energy Cannon . | . . . . . . . . . . . . . . . . . Ballistic Gun 67 | 1 4 11 2 5 4 1 2 4 3 2 9 8 5 . 1 5 Ballistic Cannon . | . . . . . . . . . . . . . . . . . Launcher 1 | . . . . . . 1 . . . . . . . . . . Special Weapon . | . . . . . . . . . . . . . . . . . Impact Weapon . | . . . . . . . . . . . . . . . . . Slashing Weapon 4 | . . . . . 1 2 . 1 . . . . . . . . Piercing Weapon 3 | . . . . . . . . . 1 1 1 . . . . . Special Melee Weapon . | . . . . . . . . . . . . . . . . . Unidentified Prototypes 6 | . . . . . 1 1 . . 1 . . . 3 . . . Parts Lost 7 | . . 1 . 1 2 . . . . . 1 . . . 1 1 Power 2 | . . . . . 1 . . . . . . . . . 1 . Propulsion 1 | . . . . . . . . . . . . . . . . 1 Utility 1 | . . . . . . . . . . . 1 . . . . . Weapon 3 | . . 1 . 1 1 . . . . . . . . . . . Highest Loss Streak 1 | . . 1 . 1 1 . . . . . 1 . . . 1 1 Average Slot Usage (%) 96 | . 98 100 98 99 90 92 93 100 99 100 98 100 93 86 85 87 Engine 6 | . 13 11 9 1 3 7 7 7 7 7 6 6 6 6 . . Treads 24 | . 22 22 26 30 26 23 24 30 30 30 26 26 19 13 13 10 Storage 16 | . 27 22 18 15 15 15 15 15 15 15 13 13 13 13 13 11 Processor 9 | . . . 9 7 12 7 7 7 7 7 17 16 20 20 20 22 Protection 6 | . . 11 9 6 1 7 7 7 7 7 7 9 5 6 5 10 Ballistic Gun 26 | . 22 33 26 30 24 27 30 29 23 29 25 26 26 26 26 23 Naked Turns . | . . . . . . . . . . . . . . . . . Heaviest Build 128 | 13 73 83 87 88 87 88 87 92 91 89 114 115 119 102 105 128 Greatest Support 160 | 40 40 43 66 86 113 121 120 90 90 100 106 106 160 160 160 160 Greatest Overweight (x) 3 | . 3 2 1 1 . . . 1 1 . 1 1 1 . . 1 Average Overweight (x) . | . . 1 1 . . . . . . . . . . . . . Largest Inventory Capacity 20 | 6 20 20 20 20 20 20 20 20 20 20 20 20 20 20 20 20 Average Capacity 19 | 5 14 20 20 20 20 20 20 20 20 20 20 20 20 20 20 20 Most Carried 20 | 4 20 20 20 20 20 20 20 20 20 20 20 20 20 20 20 19 Average Carried 18 | 2 12 19 19 19 19 19 19 19 19 20 19 19 19 20 20 17 Final Capacity 20 | 6 20 20 20 20 20 20 20 20 20 20 20 20 20 20 20 20 Final Carried 20 | 4 20 20 20 20 20 20 20 20 20 20 19 20 20 20 20 18 Class Distribution -------------------- 48% | Hauler-Gunner 30% | Scavenger-Gunner 8% | Hauler-Tank 5% | Mutant 4% | Hauler-Mutant Dominant Class ---------------- Mutant | -10/Materials Hauler-Tank | -9/Materials Hauler-Gunner | -8/Materials Hauler-Gunner | -7/Factory Hauler-Gunner | -7/Waste Hauler-Gunner | -7/Factory Hauler-Gunner | -7/Lower Caves Hauler-Gunner | -7/Lower Caves Hauler-Gunner | -7/Zion Hauler-Gunner | -6/Proximity Caves Scavenger-Gunner | -6/Factory Scavenger-Gunner | -6/Extension Scavenger-Gunner | -6/Cetus Scavenger-Gunner | -6/Archives Scavenger-Gunner | -6/Hub_04(d) Scavenger-Gunner | -5/Factory Resources | -11 -10 -9 -8 -7 -7 -7 -7 -7 -7 -6 -6 -6 -6 -6 -6 -5 ----------- Run | Scr Mat Mat Mat Fac Was Fac Low Low Zio Pro Fac Ext Cet Arc Hub Fac Matter Collected 6066 | 272 158 711 473 278 325 46 538 300 37 237 492 939 304 100 280 576 Remotely 164 | . . . . . . . . . . . . 164 . . . . Salvage Created 8937 | 96 529 1105 971 573 864 46 423 363 . 344 668 1369 132 194 415 845 Parts 412 | . 31 73 47 30 10 3 18 23 . 14 39 65 8 3 15 33 Haulers Intercepted 10 | . 2 4 1 1 . 1 . . . . 1 . . . . . Recyclers Shooed 5 | . . 1 1 . . . . . . . . . . . . 3 Parts Field Recycled . | . . . . . . . . . . . . . . . . . Retrieved Matter . | . . . . . . . . . . . . . . . . . Parts Self-Destructed 47 | . . . . . . . 4 27 . 16 . . . . . . Prevented 3 | . . . . . . . 3 . . . . . . . . . Kills | -11 -10 -9 -8 -7 -7 -7 -7 -7 -7 -6 -6 -6 -6 -6 -6 -5 ------- Run | Scr Mat Mat Mat Fac Was Fac Low Low Zio Pro Fac Ext Cet Arc Hub Fac Combat Hostiles Destroyed 132 | . 11 23 16 10 3 1 8 11 . 5 9 18 1 2 3 11 Melee 1 | . . . . . . . . . . 1 . . . . . . Guns 128 | . 9 23 16 10 3 1 8 11 . 4 9 18 1 2 3 10 AOE 3 | . 2 . . . . . . . . . . . . . . 1 Classes Destroyed 16 | 1 4 4 1 1 1 1 2 . . 1 . . . . . . Worker 6 | . . 2 . . . . . . . . 1 1 . . 1 1 Builder 6 | . 1 . 2 . . . . . . . . 2 . . 1 . Tunneler 1 | . . 1 . . . . . . . . . . . . . . Hauler 10 | . 2 4 1 1 . 1 . . . . 1 . . . . . Recycler 8 | 1 . . 2 . . . . . . . 1 2 . . . 2 Watcher 4 | . . . 1 . . . . . . . 1 . . . 1 1 Swarmer 36 | . 3 7 3 . . . . 7 . . 6 6 . . . 4 Grunt 49 | . 8 7 10 9 . . . 2 . 2 2 5 . . 1 3 Brawler 2 | . . . . 1 . . 1 . . . . . . . . . Duelist 3 | . . 1 . . . . . . . . . . . . 1 1 Sentry 24 | . . 8 3 . . . . 1 . 1 1 5 . 2 1 2 Hunter 2 | . . . . . . . 1 1 . . . . . . . . Programmer 3 | . . . . . . 1 . . . 1 . . . . . 1 Behemoth 3 | . . . . . . . . . . 1 . 2 . . . . Compactor 3 | . . . . . 3 . . . . . . . . . . . Cetus Guard 1 | . . . . . . . . . . . . . 1 . . . Enhanced Grunt 1 | . . . . . . . . . . . . . . . 1 . Thug 5 | . . . . . . . 4 . . . . . 1 . . . Savage 3 | . . . . . . . 1 . . 1 . . . . 1 . Butcher 2 | . . . . . . . . . . . . 1 . 1 . . Mutant 1 | . . . . . . . 1 . . . . . . . . . Best Kill Streak 11 | 1 5 6 11 8 2 1 6 4 . 2 6 7 1 1 1 10 Combat Bots Only 8 | . 4 5 6 8 2 1 6 4 . 2 4 3 1 1 1 5 Max Kills in Single Turn 2 | 1 2 2 2 1 1 1 2 2 . 1 2 2 1 1 2 2 Gunslinging 1 | . . . . . . . 1 1 . . 1 1 . . . . Exploded 1 | . 1 . . . . . . . . . . . . . . 1 Melee 1 | . . . . . . . . . . 1 . . . . . . Uniques/NPCs Destroyed . | . . . . . . . . . . . . . . . . . Combat | -11 -10 -9 -8 -7 -7 -7 -7 -7 -7 -6 -6 -6 -6 -6 -6 -5 -------- Run | Scr Mat Mat Mat Fac Was Fac Low Low Zio Pro Fac Ext Cet Arc Hub Fac Damage Taken 7546 | . 401 909 878 517 200 49 261 268 . 553 337 740 58 46 1317 1012 Core 852 | . 105 109 148 78 43 . . 18 . 103 44 49 . . 136 19 Absorbed by Shields 8 | . . . . . . . . . . . . . 8 . . . Core Remaining (%) 73 | 100 58 72 73 . . . . . . 65 . . . . 73 . Volleys Fired 362 | 4 38 79 49 22 15 4 15 15 . 12 22 36 8 5 15 23 Largest 4 | 2 2 3 3 4 4 4 4 4 . 4 4 4 4 4 4 4 Hottest 117 | 60 60 66 66 89 102 99 101 104 . 98 101 109 112 112 112 117 Shots Fired 1207 | 8 76 236 147 88 56 14 59 54 . 48 88 144 32 20 45 92 Gun 1207 | 8 76 236 147 88 56 14 59 54 . 48 88 144 32 20 45 92 Cannon . | . . . . . . . . . . . . . . . . . Launcher . | . . . . . . . . . . . . . . . . . Special . | . . . . . . . . . . . . . . . . . Kinetic 1176 | 4 49 236 147 88 56 14 59 54 . 48 88 144 32 20 45 92 Thermal . | . . . . . . . . . . . . . . . . . Explosive . | . . . . . . . . . . . . . . . . . Electromagnetic 31 | 4 27 . . . . . . . . . . . . . . . Robot Hit Streak 38 | 4 15 14 24 26 23 6 17 14 . 38 19 24 10 18 14 32 Robot Miss Streak 6 | 1 3 3 2 2 2 4 4 3 . 2 3 6 2 3 5 6 Penetration Max . | . . . . . . . . . . . . . . . . . Secondary Targets 25 | . 1 4 3 4 2 . 3 2 . 1 1 4 . . . . Max Gunslinging Chain 1 | . 1 1 1 1 1 . 1 1 . 1 1 1 . . . . Shots Hit Robots 948 | 7 55 161 115 70 52 13 51 35 . 43 64 119 32 20 36 75 Core Hits 658 | 3 26 63 49 29 36 5 32 22 . 18 38 130 50 30 45 82 Critical Hits 7 | . . 3 1 1 . . . . . 1 . . . . . 1 Critical Kills 4 | . . 2 1 1 . . . . . . . . . . . . Critical Parts Destroyed 3 | . . 1 . . . . . . . 1 . . . . . 1 Melee Attacks 38 | . . . . . 9 6 . 15 2 5 1 . . . . . Impact . | . . . . . . . . . . . . . . . . . Slashing 30 | . . . . . 9 6 . 15 . . . . . . . . Piercing 8 | . . . . . . . . . 2 5 1 . . . . . Sneak Attacks 2 | . . . . . . 2 . . . . . . . . . . Combat Hostiles . | . . . . . . . . . . . . . . . . . Follow-up Attacks . | . . . . . . . . . . . . . . . . . Damage Inflicted 16341 | 135 875 1565 1567 884 1319 389 750 669 . 682 914 2585 935 464 1151 1457 Guns 15041 | 90 688 1556 1530 884 1319 182 750 669 . 581 914 2521 935 464 679 1279 Cannons . | . . . . . . . . . . . . . . . . . Explosions 671 | 36 160 . . . . . . . . . . . . . 353 122 Melee 308 | . . . . . . 207 . . . 101 . . . . . . Ramming 321 | 9 27 9 37 . . . . . . . . 64 . . 119 56 Kinetic 14785 | 53 469 1556 1530 884 1319 182 750 669 . 581 914 2521 935 464 679 1279 Thermal 196 | 36 160 . . . . . . . . . . . . . . . Explosive 122 | . . . . . . . . . . . . . . . . 122 Electromagnetic 609 | 37 219 . . . . . . . . . . . . . 353 . Impact . | . . . . . . . . . . . . . . . . . Slashing 207 | . . . . . . 207 . . . . . . . . . . Piercing 101 | . . . . . . . . . . 101 . . . . . . Highest Corruption 11 | . . . . . 2 3 3 3 3 1 . . . . 11 8 Average Corruption 2 | . . . . . 2 2 3 3 3 1 . . . . 2 3 Corruption Purged . | . . . . . . . . . . . . . . . . . Effects 54 | . . . . . 3 13 12 13 1 2 . . . . . 10 Message Errors 17 | . . . . . 1 4 3 7 . 1 . . . . . 1 Matter Fused 5 | . . . . . . 2 . 2 . . . . . . . 1 Heat Flow Errors 8 | . . . . . 2 3 1 . 1 . . . . . . 1 Energy Discharges 7 | . . . . . . 1 3 2 . 1 . . . . . . Data Loss (minor) 8 | . . . . . . 2 2 2 . . . . . . . 2 Targeting Errors 8 | . . . . . . 1 2 . . . . . . . . 5 Weapon Failures 1 | . . . . . . . 1 . . . . . . . . . Overload Shots . | . . . . . . . . . . . . . . . . . Overflow Damage 115 | . 5 . . . . 71 . . . . . 25 . . 14 . Projectiles . | . . . . . . . . . . . . . . . . . Explosions 8 | . . . . . . . . . . . . . . . 8 . Melee 107 | . 5 . . . . 71 . . . . . 25 . . 6 . Knockbacks 2 | . . . . . . . . . . . . 1 . . 1 . Impact 2 | . . . . . . . . . . . . 1 . . 1 . Kinetic . | . . . . . . . . . . . . . . . . . Secondary . | . . . . . . . . . . . . . . . . . Self-Inflicted Damage 167 | . . . . . . . . . . . . . . . 167 . Shots 2 | . . . . . . . . . . . . . . . 2 . Rammed 28 | 2 3 2 2 . . . 1 . . . . 4 . . 10 4 Targets Rammed 31 | 2 4 2 3 . . . 1 . . . . 4 . . 10 5 Kicked 1 | . 1 . . . . . . . . . . . . . . . Crushed 2 | . . . 1 . . . . . . . . . . . . 1 Highest Temperature 299 | . 54 160 108 147 133 260 152 79 103 108 60 204 72 72 47 299 Average Temperature 47 | . 20 37 39 52 48 119 60 24 54 31 19 78 27 29 21 76 Received Heat Transfer 1773 | . 183 237 423 234 . . 18 57 . 123 69 171 9 . 36 213 Siege Activations . | . . . . . . . . . . . . . . . . . Robots Corrupted . | . . . . . . . . . . . . . . . . . Combat Hostiles . | . . . . . . . . . . . . . . . . . Parts Fried . | . . . . . . . . . . . . . . . . . Impact Corruptions 4 | . 1 . . . . . . . . . . 2 . . 1 . Robots Melted . | . . . . . . . . . . . . . . . . . Combat Hostiles . | . . . . . . . . . . . . . . . . . Parts Melted 1 | . . . . . . . . . . . . 1 . . . . Heat Transferred 250 | 50 200 . . . . . . . . . . . . . . . Parts Sabotaged . | . . . . . . . . . . . . . . . . . Parts Stolen . | . . . . . . . . . . . . . . . . . Parts Stripped . | . . . . . . . . . . . . . . . . . Power Chain Reactions 4 | 1 2 . . . . . . . . . . . . . . 1 Missiles Intercepted . | . . . . . . . . . . . . . . . . . Alert | -11 -10 -9 -8 -7 -7 -7 -7 -7 -7 -6 -6 -6 -6 -6 -6 -5 ------- Run | Scr Mat Mat Mat Fac Was Fac Low Low Zio Pro Fac Ext Cet Arc Hub Fac Peak Influence 740 | 5 252 475 541 449 161 354 . . . . 241 465 740 327 594 629 Initial 290 | . 3 20 131 207 157 . . . . . . 19 187 216 114 290 Average 241 | 3 117 236 315 368 88 132 . . . . 97 292 462 288 285 443 Maximum Alert Level 3 | . 1 2 2 2 . 1 . . . . 1 2 3 1 2 2 Low Security (%) 46 | 100 93 39 27 . 100 90 . . . . 96 16 8 . 13 . Level 1 40 | . 6 55 46 53 . 9 . . . . 3 72 43 100 67 39 Level 2 12 | . . 4 25 46 . . . . . . . 10 26 . 18 60 Level 3 1 | . . . . . . . . . . . . . 21 . . . Level 4 . | . . . . . . . . . . . . . . . . . Level 5 . | . . . . . . . . . . . . . . . . . High Security . | . . . . . . . . . . . . . . . . . Max Security . | . . . . . . . . . . . . . . . . . Squads Dispatched 25 | . 3 2 2 2 . 2 . . . . 2 4 . . 2 6 Investigation 4 | . 1 . 1 . . . . . . . . 1 . . . 1 Extermination 4 | . . . . 1 . 1 . . . . 1 . . . . 1 Reinforcement 13 | . 2 2 . 1 . 1 . . . . 1 3 . . 1 2 Assault 1 | . . . . . . . . . . . . . . . . 1 Garrison 3 | . . . 1 . . . . . . . . . . . 1 1 Intercept . | . . . . . . . . . . . . . . . . . Construction Impeded 1 | . . . . . . . . . . . . . . . . 1 Haulers Reinforced 1 | . . . . . . . . . . . 1 . . . . . Stealth | -11 -10 -9 -8 -7 -7 -7 -7 -7 -7 -6 -6 -6 -6 -6 -6 -5 --------- Run | Scr Mat Mat Mat Fac Was Fac Low Low Zio Pro Fac Ext Cet Arc Hub Fac Distress Signals 17 | . 3 . 2 . . 2 . . . . 1 3 2 . 2 2 Communications Jammed . | . . . . . . . . . . . . . . . . . Distress Signals . | . . . . . . . . . . . . . . . . . Times Spotted 263 | . 22 36 24 12 10 8 11 14 . 7 12 40 13 7 20 27 Peak Tracking Total 8 | . 5 7 6 4 4 4 6 4 . 4 5 6 5 2 8 6 Tactical Retreats 11 | . 1 1 2 . 1 . 1 1 . . . 3 . . . 1 Traps | -11 -10 -9 -8 -7 -7 -7 -7 -7 -7 -6 -6 -6 -6 -6 -6 -5 ------- Run | Scr Mat Mat Mat Fac Was Fac Low Low Zio Pro Fac Ext Cet Arc Hub Fac Traps Triggered 6 | . 1 . 1 1 . 1 . . . . . 2 . . . . Indirectly . | . . . . . . . . . . . . . . . . . Trap Hack Attempts . | . . . . . . . . . . . . . . . . . Triggered . | . . . . . . . . . . . . . . . . . Disarmed . | . . . . . . . . . . . . . . . . . Reprogrammed . | . . . . . . . . . . . . . . . . . Reused . | . . . . . . . . . . . . . . . . . Traps Extracted . | . . . . . . . . . . . . . . . . . Installed . | . . . . . . . . . . . . . . . . . Triggered 2 | . . . . . . . 1 1 . . . . . . . . Machines | -11 -10 -9 -8 -7 -7 -7 -7 -7 -7 -6 -6 -6 -6 -6 -6 -5 ---------- Run | Scr Mat Mat Mat Fac Was Fac Low Low Zio Pro Fac Ext Cet Arc Hub Fac Machines Disabled 24 | . . . . . . 6 . . . . . . 1 . 15 2 Max in Single Turn 10 | . . . . . . . . . . . . . . . 10 1 Garrison Access 1 | . . . . . . 1 . . . . . . . . . . Network Hub 2 | . . . . . . . . . . . . . . . 2 . Machines Sabotaged . | . . . . . . . . . . . . . . . . . Garrisons Compromised . | . . . . . . . . . . . . . . . . . Overloaded Fab Kills 7 | . . . . . . . . . . . . . . . . 7 Fab Network Shutdowns . | . . . . . . . . . . . . . . . . . Hacking | -11 -10 -9 -8 -7 -7 -7 -7 -7 -7 -6 -6 -6 -6 -6 -6 -5 --------- Run | Scr Mat Mat Mat Fac Was Fac Low Low Zio Pro Fac Ext Cet Arc Hub Fac Machines Accessed 15 | . 4 3 1 . . 3 . 2 . . . 1 . . . 1 Terminals 10 | . 3 3 . . . 2 . 1 . . . 1 . . . . Fabricators 1 | . . . . . . . . . . . . . . . . 1 Repair Stations 2 | . 1 . 1 . . . . . . . . . . . . . Recycling Units . | . . . . . . . . . . . . . . . . . Scanalyzers . | . . . . . . . . . . . . . . . . . Garrison Access 1 | . . . . . . 1 . . . . . . . . . . Total Hacks 48 | . 20 10 7 . . 7 . 2 . . . 1 . . . 1 Successful 29 | . 12 4 6 . . 3 . 2 . . . 1 . . . 1 Failed 19 | . 8 6 1 . . 4 . . . . . . . . . . Catastrophic 3 | . 1 1 . . . 1 . . . . . . . . . . Database Lockouts . | . . . . . . . . . . . . . . . . . Manual 23 | . 10 5 . . . 5 . . . . . 1 1 . . 1 Terminals 33 | . 15 10 . . . 6 . 1 . . . 1 . . . . Fabricators 1 | . . . . . . . . . . . . . . . . 1 Repair Stations 12 | . 5 . 7 . . . . . . . . . . . . . Recycling Units . | . . . . . . . . . . . . . . . . . Scanalyzers . | . . . . . . . . . . . . . . . . . Garrison Access 1 | . . . . . . 1 . . . . . . . . . . Terminal Hacks 12 | . 6 3 . . . 1 . 2 . . . . . . . . Record 1 | . . . . . . . . 1 . . . . . . . . Part Schematic 1 | . 1 . . . . . . . . . . . . . . . Robot Analysis 4 | . 2 2 . . . . . . . . . . . . . . Prototype ID Bank 1 | . 1 . . . . . . . . . . . . . . . Open Door 1 | . . . . . . . . 1 . . . . . . . . Branch Access Points 1 | . . . . . . 1 . . . . . . . . . . Terminal Index 1 | . 1 . . . . . . . . . . . . . . . Unreport Threat 1 | . . 1 . . . . . . . . . . . . . . Locate Traps 1 | . 1 . . . . . . . . . . . . . . . Fabricator Hacks . | . . . . . . . . . . . . . . . . . Repair Station Hacks 10 | . 4 . 6 . . . . . . . . . . . . . Scan Component 5 | . 2 . 3 . . . . . . . . . . . . . Repair 5 | . 2 . 3 . . . . . . . . . . . . . Recycling Unit Hacks . | . . . . . . . . . . . . . . . . . Scanalyzer . | . . . . . . . . . . . . . . . . . Garrison Access Hacks 1 | . . . . . . 1 . . . . . . . . . . Seal Access 1 | . . . . . . 1 . . . . . . . . . . Unauthorized Hacks 6 | . 2 1 . . . 1 . . . . . 1 . . . 1 Terminals 5 | . 2 1 . . . 1 . . . . . 1 . . . . Track 3 | . 1 1 . . . 1 . . . . . . . . . . Botnet 2 | . 1 . . . . . . . . . . 1 . . . . Fabricators 1 | . . . . . . . . . . . . . . . . 1 Overload 1 | . . . . . . . . . . . . . . . . 1 Repair Stations . | . . . . . . . . . . . . . . . . . Recycling Units . | . . . . . . . . . . . . . . . . . Scanalyzers . | . . . . . . . . . . . . . . . . . Garrison Access . | . . . . . . . . . . . . . . . . . Data Cores Recovered 1 | . . . . . . 1 . . . . . . . . . . Used 1 | . . . . . . 1 . . . . . . . . . . Hacking Detections 11 | . 3 3 1 . . 2 . . . . . 1 1 . . . Full Trace Events 1 | . 1 . . . . . . . . . . . . . . . Feedback Events . | . . . . . . . . . . . . . . . . . Feedback Blocked . | . . . . . . . . . . . . . . . . . Robot Schematics Acquired . | . . . . . . . . . . . . . . . . . Robots Built . | . . . . . . . . . . . . . . . . . Matter . | . . . . . . . . . . . . . . . . . Time . | . . . . . . . . . . . . . . . . . Total Robot Build Rating . | . . . . . . . . . . . . . . . . . Part Schematics Acquired 1 | . 1 . . . . . . . . . . . . . . . Parts Built . | . . . . . . . . . . . . . . . . . Matter . | . . . . . . . . . . . . . . . . . Time . | . . . . . . . . . . . . . . . . . Total Part Build Rating . | . . . . . . . . . . . . . . . . . Parts Repaired 5 | . 2 . 3 . . . . . . . . . . . . . Time 136 | . 52 . 84 . . . . . . . . . . . . . Parts Recycled . | . . . . . . . . . . . . . . . . . Recycled Matter . | . . . . . . . . . . . . . . . . . Retrieved Matter . | . . . . . . . . . . . . . . . . . Retrieved Components . | . . . . . . . . . . . . . . . . . Parts Scanalyzed . | . . . . . . . . . . . . . . . . . Part Schematics Acquired . | . . . . . . . . . . . . . . . . . Parts Damaged . | . . . . . . . . . . . . . . . . . Bothacking | -11 -10 -9 -8 -7 -7 -7 -7 -7 -7 -6 -6 -6 -6 -6 -6 -5 ------------ Run | Scr Mat Mat Mat Fac Was Fac Low Low Zio Pro Fac Ext Cet Arc Hub Fac Used RIF Installer . | . . . . . . . . . . . . . . . . . Robots Hacked . | . . . . . . . . . . . . . . . . . Non-combat . | . . . . . . . . . . . . . . . . . Combat . | . . . . . . . . . . . . . . . . . Robot Hacks Applied . | . . . . . . . . . . . . . . . . . Relay Couplers Released . | . . . . . . . . . . . . . . . . . Robots Rewired 16 | . . . . . . . 2 . . . . 14 . . . . Allies Hacked . | . . . . . . . . . . . . . . . . . Hacks Repelled . | . . . . . . . . . . . . . . . . . Allies | -11 -10 -9 -8 -7 -7 -7 -7 -7 -7 -6 -6 -6 -6 -6 -6 -5 -------- Run | Scr Mat Mat Mat Fac Was Fac Low Low Zio Pro Fac Ext Cet Arc Hub Fac Total Allies 54 | . . . . . 19 . 2 . 5 . . 25 3 . . . Largest Group 19 | . . . . . 19 6 3 3 5 5 . 15 15 8 4 . Highest-Rated Group 668 | . . . . . 487 197 94 94 133 133 . 540 668 537 298 . Highest-Rated Ally 156 | . . . . . 35 35 35 32 31 31 . 156 156 156 94 . Total Orders 20 | . . . . . . . . . . . . 12 1 . 5 2 STAY 1 | . . . . . . . . . . . . . . . 1 . FOLLOW 1 | . . . . . . . . . . . . 1 . . . . RETURN 18 | . . . . . . . . . . . . 11 1 . 4 2 Ally Attacks 398 | . . . . . 89 22 8 13 . 18 . 83 120 19 26 . Total Damage 15082 | . . . . . 4996 1475 494 231 . 445 . 1807 3915 593 1126 . Kills 76 | . . . . . 14 8 2 3 . 3 . 16 18 2 10 . Allies Corrupted . | . . . . . . . . . . . . . . . . . Allies Melted 1 | . . . . . . . . . . 1 . . . . . . Intel | -11 -10 -9 -8 -7 -7 -7 -7 -7 -7 -6 -6 -6 -6 -6 -6 -5 ------- Run | Scr Mat Mat Mat Fac Was Fac Low Low Zio Pro Fac Ext Cet Arc Hub Fac Robot Analysis Total 4 | . 2 2 . . . . . . . . . . . . . . Derelict Logs Recovered 3 | . . . . . . . . . 1 2 . . . . . . Drone Launches 17 | . . . . . . . . . . . . 10 1 . 4 2 Drone Recoveries 17 | . . . . . . . . . . . . 10 1 . 4 2 Exploration | -11 -10 -9 -8 -7 -7 -7 -7 -7 -7 -6 -6 -6 -6 -6 -6 -5 ------------- Run | Scr Mat Mat Mat Fac Was Fac Low Low Zio Pro Fac Ext Cet Arc Hub Fac Turns Passed 11864 | 107 1005 1045 740 262 640 652 448 714 1435 912 554 1791 406 86 550 517 Spaces Moved 5746 | 52 464 405 257 107 338 374 219 364 832 533 273 781 185 40 285 237 Core 3 | 3 . . . . . . . . . . . . . . . . Treads 5666 | 49 387 405 257 107 338 374 219 364 832 533 273 781 185 40 285 237 Legs 77 | . 77 . . . . . . . . . . . . . . . Wheels . | . . . . . . . . . . . . . . . . . Hover . | . . . . . . . . . . . . . . . . . Flight . | . . . . . . . . . . . . . . . . . Fastest Speed 50 | 50 120 180 180 160 160 155 155 156 158 158 158 160 160 160 160 160 Average Speed 166 | 153 163 186 180 160 160 155 155 166 169 158 163 177 163 160 160 160 Slowest Speed 210 | 160 210 200 180 180 160 160 156 178 178 158 180 180 180 160 160 180 Overloaded Moves . | . . . . . . . . . . . . . . . . . Propulsion Burnouts . | . . . . . . . . . . . . . . . . . Robots Hopped . | . . . . . . . . . . . . . . . . . Cave-ins Triggered 1 | . . . . . 1 . . . . . . . . . . . Exploration Rate (%) 44 | 5 68 49 31 3 86 14 45 46 84 75 9 84 61 64 27 12 Regions Visited 16 Branch Regions 8 Pre-discovered Areas 4 | . . . . . . . . . 4 . . . . . . . Known Exits Taken 2 | . . . . . . 1 . . . . . . . . 1 . Unknown Exits Taken 12 | 1 1 1 1 . . . 1 1 1 1 1 1 1 1 . . Scrap Searched 14 | . . . . . . . 2 7 3 2 . . . . . . Spaces Dug 188 | . . . . . 8 3 . 15 . 1 1 . . . 160 . Terrain Destroyed 384 | 2 4 . . . 8 3 . 16 . 1 1 . . . 324 25 Melee 28 | . . . . . 8 3 . 15 . 1 1 . . . . . Projectile 4 | . . . . . . . . 1 . . . . . . 1 2 AOE 352 | 2 4 . . . . . . . . . . . . . 323 23 Terrain Rammed . | . . . . . . . . . . . . . . . . . Walls Destroyed . | . . . . . . . . . . . . . . . . . Machines Disabled . | . . . . . . . . . . . . . . . . . Actions | -11 -10 -9 -8 -7 -7 -7 -7 -7 -7 -6 -6 -6 -6 -6 -6 -5 --------- Run | Scr Mat Mat Mat Fac Was Fac Low Low Zio Pro Fac Ext Cet Arc Hub Fac Total 7236 | 67 639 559 436 148 398 430 294 424 854 567 336 1105 279 50 340 310 Wait 467 | . 68 27 95 . 5 25 4 2 8 9 6 114 50 6 22 26 Move 5732 | 52 463 404 256 107 337 373 218 363 831 532 272 780 184 39 284 237 Hop . | . . . . . . . . . . . . . . . . . Pick Up 95 | 4 27 7 9 3 11 4 4 7 2 . 1 6 8 . . 2 Fast Attach 29 | 6 6 . 3 1 2 1 1 . 1 . 1 . 5 . 1 1 Attach 33 | . 5 5 5 4 5 . 2 . . . 3 . . . . 4 Detach . | . . . . . . . . . . . . . . . . . Swap 138 | . 7 17 5 6 2 7 2 10 6 6 16 31 6 . 7 10 Drop 151 | . 21 18 11 5 12 10 5 12 4 3 14 15 18 . 1 2 Fire 362 | 4 38 79 49 22 15 4 15 15 . 12 22 36 8 5 15 23 Melee 38 | . . . . . 9 6 . 15 2 5 1 . . . . . Ram . | . . . . . . . . . . . . . . . . . Kick 1 | . 1 . . . . . . . . . . . . . . . Crush 29 | 1 3 2 3 . . . 1 . . . . 4 . . 10 5 Escape Stasis . | . . . . . . . . . . . . . . . . . Rewire 161 | . . . . . . . 42 . . . . 119 . . . . Trap . | . . . . . . . . . . . . . . . . . Miscellaneous . | . . . . . . . . . . . . . . . . . Route ------- -11/Scrapyard -10/Materials (discovered 3 exits: *Mat x2 / [*Min]) -9/Materials -8/Materials -7/Factory -7/Waste -7/Factory (discovered 5 exits: *Fac / Sto x2 / *Low x2) -7/Lower Caves -7/Lower Caves -7/Zion -6/Proximity Caves -6/Factory -6/Extension (discovered 3 exits: *Fac x2 / *Cet) -6/Cetus (discovered 2 exits: *Fac / [*Arc]) -6/Archives -6/Hub_04(d) (discovered 4 exits: *Fac x4) -5/Factory History --------- Turn | Location | Event 14 | -11/Scrapyard | Discovered new exit (range 16) 108 | -11/Scrapyard | Entered Materials 196 | -10/Materials | Discovered new exit (range 9) 304 | -10/Materials | Build established: Mutant 468 | -10/Materials | Discovered new exit (range 6) 795 | -10/Materials | Discovered new exit (range 15) 1013 | -10/Materials | Build established: Hauler-Mutant 1018 | -10/Materials | Repaired Lgt. Assault Rifle 1045 | -10/Materials | Repaired Ion Engine 1113 | -10/Materials | Entered another Materials area 1113 | -9/Materials | Evolved 2 slots: Utility x1, Weapon x1 1411 | -9/Materials | Build established: Hauler-Tank 2038 | -9/Materials | Discovered new exit (range 12) 2158 | -9/Materials | Entered another Materials area 2158 | -8/Materials | Evolved 2 slots: Propulsion x1, Utility x1 2421 | -8/Materials | Garrison activated, responded to threat 2447 | -8/Materials | Build established: Hauler-Gunner 2579 | -8/Materials | Repaired Lgt. Treads 2612 | -8/Materials | Repaired Imp. Treads 2640 | -8/Materials | Repaired Lgt. Assault Rifle 2779 | -8/Materials | Discovered new exit (range 9) 2898 | -8/Materials | Entered Factory 2898 | -7/Factory | Evolved 2 slots: Propulsion x1, Weapon x1 3033 | -7/Factory | Destroyed 8 combat bots 3160 | -7/Factory | Sucked down chute 3160 | -7/Factory | Entered Waste 3184 | -7/Waste | Spotted C-40 Crusher 3197 | -7/Waste | Destroyed C-40 Crusher 3214 | -7/Waste | Destroyed C-40 Crusher 3218 | -7/Waste | Spotted C-40 Crusher 3218 | -7/Waste | Spotted C-40 Crusher 3218 | -7/Waste | Spotted C-40 Crusher 3225 | -7/Waste | Crushed by Compactor (1 part destroyed, 1 dropped) 3269 | -7/Waste | Spotted C-40 Crusher 3308 | -7/Waste | Discovered new exit (range 15) 3362 | -7/Waste | Crushed by falling debris 3426 | -7/Waste | Warlord forces began an assault 3463 | -7/Waste | Allies destroyed C-40 Crusher 3467 | -7/Waste | Allies destroyed C-40 Crusher 3472 | -7/Waste | Destroyed C-40 Crusher 3482 | -7/Waste | Allies destroyed C-40 Crusher 3800 | -7/Waste | Entered Factory 3800 | -7/Factory | Accompanied by 6 allies 3875 | -7/Factory | Found Prototype Launcher 3875 | -7/Factory | Identified Rocket Array 3962 | -7/Factory | Identified exit to Storage 3962 | -7/Factory | Identified exit to Lower Caves 4346 | -7/Factory | Discovered new exit (range 15) 4452 | -7/Factory | Entered Lower Caves 4452 | -7/Lower Caves | Accompanied by 3 allies 4752 | -7/Lower Caves | Attacked by a faux Warlord 4818 | -7/Lower Caves | Discovered new exit (range 13) 4900 | -7/Lower Caves | Entered another Lower Caves area 4900 | -7/Lower Caves | Accompanied by 3 allies 5047 | -7/Lower Caves | Attracted the attention of an 0b10 checkpoint 5523 | -7/Lower Caves | Discovered new exit (range 5) 5614 | -7/Lower Caves | Entered Zion 5693 | -7/Zion | System corruption cleaned by Quarantine Array 5874 | -7/Zion | Acquired unknown access codes intercepted by a Zionite 5900 | -7/Zion | Found CR-A16's Pointy Stick 5912 | -7/Zion | Discovered new exit (range 13) 6061 | -7/Zion | Learned location of Recycling (-7) 6124 | -7/Zion | Loaded intel: 4 derelict terminal locations 6274 | -7/Zion | Learned location of Warlord (-5) 6302 | -7/Zion | Learned location of Data Miner (-6) 6452 | -7/Zion | Given the Hacking Drone Bay 6456 | -7/Zion | Found Prototype Device 6462 | -7/Zion | Identified Hacking Drone Bay 6806 | -7/Zion | Learned Factory emergency access door positions 6882 | -7/Zion | Gained Derelict followers 7049 | -7/Zion | Entered Proximity Caves 7049 | -6/Proximity Caves | Accompanied by 5 allies 7177 | -6/Proximity Caves | P-60 Hacker assimilated allied AB-8YL(i) 7282 | -6/Proximity Caves | Spotted B-75 Beast 7321 | -6/Proximity Caves | Destroyed B-75 Beast 7687 | -6/Proximity Caves | Attracted the attention of an 0b10 checkpoint 7709 | -6/Proximity Caves | Learned location of 1 exit from Lower Caves 7876 | -6/Proximity Caves | Learned Factory non-interactive machine intel 7957 | -6/Proximity Caves | Discovered new exit (range 3) 7961 | -6/Proximity Caves | Entered Factory 7961 | -6/Factory | Evolved 2 slots: Utility x2 7963 | -6/Factory | Loaded intel: 179 non-interactive machine locations 8336 | -6/Factory | Build established: Scavenger-Gunner 8359 | -6/Factory | Discovered new exit (range 12) 8515 | -6/Factory | Entered Extension 8776 | -6/Extension | Identified exit to Factory 9040 | -6/Extension | Disrupted transfer network 9088 | -6/Extension | Rescued a captive Derelict 9200 | -6/Extension | Rescued a captive Derelict 9578 | -6/Extension | Spotted B-75 Beast 9595 | -6/Extension | Destroyed B-75 Beast 9606 | -6/Extension | Spotted B-75 Beast 9626 | -6/Extension | Destroyed B-75 Beast 9728 | -6/Extension | Rescued a captive Derelict 9729 | -6/Extension | Rescued a captive Derelict 9766 | -6/Extension | Rescued a captive Derelict 10112 | -6/Extension | Rescued a captive Derelict 10113 | -6/Extension | Rescued a captive Derelict 10136 | -6/Extension | Rescued a captive Derelict 10137 | -6/Extension | Rescued a captive Derelict 10167 | -6/Extension | Rescued a captive Derelict 10220 | -6/Extension | Rescued A7 10259 | -6/Extension | Discovered new exit (range 6) 10306 | -6/Extension | Entered Cetus 10306 | -6/Cetus | Accompanied by 15 allies (A7) 10311 | -6/Cetus | Acquired a Cetus Manufacturing Module code from A7 10329 | -6/Cetus | Spotted Cetus Guard 10329 | -6/Cetus | Spotted Cetus Guard 10332 | -6/Cetus | Spotted Cetus Guard 10338 | -6/Cetus | Destroyed Cetus Guard 10339 | -6/Cetus | Spotted Cetus Guard 10350 | -6/Cetus | Allies destroyed Cetus Guard 10350 | -6/Cetus | Allies destroyed Cetus Guard 10353 | -6/Cetus | Allies destroyed Cetus Guard 10463 | -6/Cetus | Started Cetus Manufacturing Module 10488 | -6/Cetus | Manufactured an Enhanced Grunt 10513 | -6/Cetus | Manufactured an Enhanced Grunt 10520 | -6/Cetus | Discovered new exit (range 15) 10538 | -6/Cetus | Manufactured an Enhanced Grunt 10555 | -6/Cetus | Cetus Manufacturing Module disabled 10592 | -6/Cetus | Spotted Cetus Guard 10592 | -6/Cetus | Spotted Cetus Guard 10595 | -6/Cetus | Spotted Cetus Guard 10595 | -6/Cetus | Spotted Cetus Guard 10605 | -6/Cetus | Allies destroyed Cetus Guard 10606 | -6/Cetus | Discovered exit to Factory (range 16) 10613 | -6/Cetus | Allies destroyed Cetus Guard 10617 | -6/Cetus | Allies destroyed Cetus Guard 10619 | -6/Cetus | Allies destroyed Cetus Guard 10630 | -6/Cetus | Met Revision 17 10712 | -6/Cetus | Entered Archives 10712 | -6/Archives | Accompanied by 8 allies (A7) 10768 | -6/Archives | Discovered new exit (range 16) 10798 | -6/Archives | Entered Hub_04(d) 10798 | -6/Hub_04(d) | Accompanied by 4 allies 10832 | -6/Hub_04(d) | Garrison activated, responded to threat 10932 | -6/Hub_04(d) | Discovered exit to Factory (range 3) 11291 | -6/Hub_04(d) | Network Hub disabled 11328 | -6/Hub_04(d) | Spotted Lightning 11329 | -6/Hub_04(d) | Spotted Lightning 11330 | -6/Hub_04(d) | Spotted Lightning 11330 | -6/Hub_04(d) | Spotted Lightning 11335 | -6/Hub_04(d) | Network Hub disabled 11336 | -6/Hub_04(d) | Spotted Lightning 11347 | -6/Hub_04(d) | System corruption reached 10% 11348 | -6/Hub_04(d) | Entered Factory 11348 | -5/Factory | Evolved 2 slots: Utility x2 11648 | -5/Factory | First assault squad dispatched 11828 | -5/Factory | Garrison activated, responded to threat 11865 | -5/Factory | Self-destructed Last Messages --------------- 11828_ Slug penetrates G-50 Soldier. 11828_ G-50 Soldier destroyed. 11829_ Fabricator zaps K-01 Serf with an electromagnetic arc. 11829_ Acquired 18 matter. 11829_ K-01 Serf system terminally corrupted. 11829_ W-25 Informer sends out distress signal. 11837_ System corrupted: Matter fused (-6). 11837_ Acquired 6 matter. 11837_ Slug penetrates Wall. 11838_ Acquired 18 matter. 11841_ Slug penetrates G-50 Soldier. 11841_ G-50 Soldier destroyed. 11842_ Acquired 18 matter. 11844_ Fabricator disabled. 11848_ ALERT: Rogue bot located, Programmers report to Factory Zone 9S. 11852_ U-05 Engineer lays Concrete. 11861_ K-01 Serf collects debris. 11862_ R-10 Processor collects Autogun. 11862_ U-05 Engineer lays Concrete. 11864_ K-01 Serf collects debris. Map ----- +----------------------------------------------------+ | ?????????# """""" """""" #? #? | | ??????????? " " """""" """""" # #? | | ????????????"G" """""" """""" # #? | | ?????????????" + #? | | ?????????????? # #? | | ?????????????? # #? | | ?????????????? ######### #? #? | | ?????????????######+#######???# #? #? | | ?????????????# #???# #?? #? | | ?????????????# u #???# #??#######? | | ?????????????# #???# #??? ? | | ?????????????# u ##??# #??? """"? | | ?????????????# R ;#??# #?? """"# | | ?????????????# ;#??# #?? """"# | | ?????????????# ;#??# #? """"# | | ?????????????# " ;#??# #? # | | ?????????????# " #??# # """"# | | ?????????????# " ;#### # """"# | | ?????????????# " = ; / """"# | | ?????????????# % ;#### # """"# | | ?????????????#### ;;;k;;#??# # # | | ?????????????# *!%! ; ;#???# p #? """"# | | ?????????????# %[ ; ;##### #? """"# | | ?????????????#"""" # #??] """"# | | ?????????????#"""" #[ #?? """"# | | ?????????????#"""" ! ^%+=@ #??? ? | | ?????????????#"""" #! #???####/## | | ?????????????#"""" # #????????#? | | ?????????????#"""" ####+#########?????????? | | ?????????????# #?? ??????????????????? | | ?????????????#"""" #? ???????????????????? | | ?????????????#""""^ # ????????????????????? | | ?????????????#"""" # ?????????????????????? | | ?????????????#"""" # ?????????????????????? | | ?????????????#"""" #??????????????????????? | | ?????????????#"""" #??????????????????????? | | ?????????????# ! #??????????????????????? | | ??????????????##########??????????????????????? | | ??????????????????????????????????????????????? | | ??????????????????????????????????????????????? | | ??????????????????????????????????????????????? | | ??????????????????????????????????????????????? | | ??????????????????????????????????????????????? | | ??????????????????????????????????????????????? | | ??????????????????????????????????????????????? | | ??????????????????????????????????????????????? | | ??????????????????????????????????????????????? | | ??????????????????????????????????????????????? | | ??????????????????????????????????????????????? | | ??????????????????????????????????????????????? | +----------------------------------------------------+ Best States ------------- Heat Dissipation 71 Energy Generation 25 Energy Capacity 350 Matter Stores 300 Matter Capacity 300 Sight Range 22 Terrain Scan Density 10 Armor Coverage 450 Resistance: KI 30 Evasion (%) 40 Targeting Accuracy 8 Core Analysis 6 Armor Integrity Analysis 33 Recoil Reduction 4 Salvage Targeting 4 Item Schematics ----------------- Hcp. Storage Unit | -10/Materials | Hacked Robot Schematics ------------------ None Fabricated ------------ Nothing Alien Tech Used ----------------- None Achievements -------------- Ride The Lightning Challenges ------------ None Game ------ Seed FactoryAlertClaws Manual? 0 Play Time 01:07:08 Cumulative 664.0 hours Start 2020.12.06 @ 19:23:44 End 2020.12.06 @ 20:28:23 Sessions 1 Manual Loads 0 Difficulty Rogue Special Mode None Game No. 1006 Rogue 1006 Adventurer 0 Explorer 0 Win Type - Total 64 Types 39/1/9/11/4/0/0/0/0 Lore% 94 Gallery% 94 Achievement% 83 Wizard Run 0 Options --------- ASCII 1 Keyboard 0 Movement Numpad Keybinds 0 Fullscreen 0 Font 14/SmallcapsGlow Map View 76x50 Tactical HUD 1 Map Filters NONE Filters NONE Steam 1 RUN: 1166cff9-591c-49ed-9c46-97052bf229e1